fUST/lending_fUST_20240620
["ID","MTS","AMOUNT","RATE_DAILY","PERIOD"]
[329981656,1718893844525,-500.0,0.00055068,120]
[329981657,1718893844535,-500.0,0.00055068,120]
[329981658,1718893844547,-500.0,0.00055068,120]
[329981659,1718893844559,-500.0,0.00055068,120]
[329981660,1718893844568,-500.0,0.00055068,120]
[329981661,1718893844577,-500.0,0.00055068,120]
[329981662,1718893844587,-3121.95,0.00055068,120]
[329981663,1718893844598,-500.0,0.00055068,120]
[329981664,1718893844607,-500.0,0.00055068,120]
[329981665,1718893844616,-720.78,0.00055068,120]
[329981666,1718893844625,-510.14145073,0.00055068,120]
[329981667,1718893844635,-500.0,0.00055068,120]
[329981668,1718893844646,-2876.31,0.00055068,120]
[329981669,1718893844655,-500.0,0.00055068,120]
[329981670,1718893844664,-500.0,0.00055068,120]
[329981671,1718893844674,-500.0,0.00055068,120]
[329981672,1718893844682,-500.0,0.00055068,120]
[329981673,1718893844692,-527.26021185,0.00055068,120]
[329981674,1718893844702,-500.0,0.00055068,120]
[329981675,1718893844711,-3044.24,0.00055068,120]
[329981676,1718893844720,-514.4140487,0.00055068,120]
[329981677,1718893844730,-500.0,0.00055068,120]
[329981678,1718893844740,-500.0,0.00055068,120]
[329981679,1718893844749,-500.0,0.00055068,120]
[329981680,1718893844758,-500.0,0.00055068,120]
[329981681,1718893844768,-502.25131364,0.00055068,120]
[329981682,1718893844777,-500.0,0.00055068,120]
[329981683,1718893844786,-510.98,0.00055068,120]
[329981684,1718893844795,-500.0,0.00055068,120]
[329981685,1718893844804,-500.0,0.00055068,120]
[329981686,1718893844813,-500.0,0.00055068,120]
[329981687,1718893844823,-500.0,0.00055068,120]
[329981688,1718893844832,-500.0,0.00055068,7]
[329981689,1718893844841,-500.0,0.00055068,120]
[329981690,1718893844852,-1268.8,0.00055068,120]
[329981691,1718893844861,-502.83306946,0.00055068,120]
[329981692,1718893844870,-622.34137942,0.00055068,30]
[329981693,1718893844880,-1189.39,0.00055068,120]
[329981694,1718893844889,-500.0,0.00055068,120]
[329981695,1718893844899,-176.65892902,0.00055068,120]
[329981696,1718893844908,-500.0,0.00055068,120]
[329981697,1718893844918,-500.0,0.00055068,120]
[329981698,1718893844928,-500.0,0.00055068,120]
[329981699,1718893844937,-527.77,0.00055068,120]
[329981700,1718893844947,-500.0,0.00055068,120]
[329981701,1718893844956,-4860.44,0.00055068,120]
[329981702,1718893844965,-500.0,0.00055068,120]
[329981703,1718893844975,-516.89966868,0.00055068,120]
[329981704,1718893844984,-500.0,0.00055068,120]
[329981705,1718893844994,-500.0,0.00055068,120]
[329981706,1718893845003,-500.0,0.00055068,120]
[329981707,1718893845012,-541.64,0.00055068,120]
[329981708,1718893845022,-500.0,0.00055068,120]
[329981709,1718893845032,-500.0,0.00055068,120]
[329981710,1718893845108,-500.0,0.00055068,120]
[329981711,1718893845125,-500.0,0.00055068,120]
[329981712,1718893845134,-793.66,0.00055068,120]
[329981713,1718893845144,-500.0,0.00055068,120]
[329981714,1718893845153,-500.0,0.00055068,120]
[329981715,1718893845163,-500.0,0.00055068,120]
[329981716,1718893845172,-500.0,0.00055068,120]
[329981717,1718893845182,-3247.93,0.00055068,120]
[329981718,1718893845191,-503.46364103,0.00055068,120]
[329981719,1718893845201,-500.0,0.00055068,120]
[329981720,1718893845210,-511.4836172,0.00055068,120]
[329981721,1718893845219,-500.0,0.00055068,120]
[329981722,1718893845229,-500.0,0.00055068,120]
[329981723,1718893845238,-1140.96,0.00055068,120]
[329981724,1718893845248,-500.0,0.00055068,60]
[329981725,1718893845258,-500.0,0.00055068,120]
[329981726,1718893845268,-500.0,0.00055068,120]
[329981727,1718893845277,-585.18670268,0.00055068,120]
[329981728,1718893845286,-500.0,0.00055068,30]
[329981729,1718893845296,-500.0,0.00055068,120]
[329981730,1718893845305,-500.0,0.00055068,120]
[329981731,1718893845315,-500.0,0.00055068,120]
[329981732,1718893845324,-500.0,0.00055068,120]
[329981733,1718893845333,-500.0,0.00055068,120]
[329981734,1718893845343,-511.6321609,0.00055068,120]
[329981735,1718893845354,-500.0,0.00055068,120]
[329981736,1718893845363,-501.15692702,0.00055068,120]
[329981737,1718893845372,-798.75,0.00055068,120]
[329981738,1718893845381,-626.88845059,0.00055068,120]
[329981739,1718893845390,-5567.6,0.00055068,120]
[329981740,1718893845399,-500.0,0.00055068,120]
[329981741,1718893845408,-500.0,0.00055068,120]
[329981742,1718893845417,-500.0,0.00055068,120]
[329981743,1718893845427,-2119.36,0.00055068,120]
[329981744,1718893845437,-559.12,0.00055068,2]
[329981745,1718893845447,-500.0,0.00055068,120]
[329981746,1718893845457,-702.87,0.00055068,120]
[329981747,1718893845467,-500.0,0.00055068,120]
[329981748,1718893845477,-24556.20775878,0.00055242,120]
[329981749,1718893845487,-1092.89,0.00055341,120]
[329981750,1718893845496,-1092.89,0.00055341,120]
[329981751,1718893845506,-1092.89,0.00055341,120]
[329981752,1718893845515,-500.0,0.00055341,120]
[329981753,1718893845525,-543.59995711,0.00055341,120]
[329981754,1718893845534,-500.0,0.00055342,120]
[329981755,1718893845544,-459.4555841,0.00055342,120]
[329981756,1718893845554,-200.0,0.00055342,7]
[329981757,1718893845567,-505.22581909,0.00055342,120]
[329981758,1718893845576,-500.0,0.00055342,2]
[329981759,1718893845585,-526.73879693,0.00055342,120]
[329981760,1718893845596,-500.0,0.00055342,60]
[329981761,1718893845606,-508.75984713,0.00055342,120]
[329981762,1718893845614,-500.0,0.00055342,120]
[329981763,1718893845623,-500.0,0.00055342,120]
[329981764,1718893845633,-500.0,0.00055342,120]
[329981765,1718893845643,-374.36612089,0.00055342,120]
[329981766,1718893845653,-500.0,0.00055342,120]
[329981767,1718893845662,-231.76154413,0.00055342,120]
[329981768,1718893845672,-500.0,0.00055342,120]
[329981773,1718893845681,-500.0,0.00055342,2]
[329981778,1718893845690,-500.0,0.00055342,120]
[329981782,1718893845699,-500.0,0.00055342,120]
[329981785,1718893845708,-500.0,0.00055342,120]
[329981792,1718893845717,-500.0,0.00055342,120]
[329981798,1718893845726,-500.0,0.00055342,120]
[329981804,1718893845735,-500.0,0.00055342,120]
[329981810,1718893845744,-500.0,0.00055342,120]
[329981815,1718893845754,-500.0,0.00055342,120]
[329981819,1718893845764,-372.31175217,0.00055342,120]
[329981826,1718893845773,-500.0,0.00055342,120]
[329981833,1718893845783,-516.28598632,0.00055342,120]
[329981837,1718893845792,-500.0,0.00055342,120]
[329981841,1718893845802,-500.0,0.00055342,120]
[329981845,1718893845811,-511.91994521,0.00055342,120]
[329981848,1718893845820,-238.56231415,0.00055342,120]
[329981851,1718893845829,-2840.35,0.00055342,120]
[329981853,1718893845838,-500.0,0.00055342,120]
[329981855,1718893845849,-500.0,0.00055342,120]
[329981857,1718893845858,-571.96,0.00055342,120]
[329981859,1718893845868,-500.0,0.00055342,120]
[329981861,1718893845877,-500.0,0.00055342,120]
[329981863,1718893845886,-580.67754384,0.00055342,120]
[329981865,1718893845895,-500.0,0.00055342,120]
[329981867,1718893845905,-500.0,0.00055342,120]
[329981869,1718893845914,-523.8606731,0.00055342,120]
[329981871,1718893845923,-351.29835581,0.00055342,120]
[329981873,1718893845933,-1141.42,0.00055342,120]
[329981875,1718893845942,-500.0,0.00055342,120]
[329981877,1718893845952,-500.0,0.00055342,120]
[329981879,1718893845961,-500.0,0.00055342,120]
[329981881,1718893845972,-500.0,0.00055342,120]
[329981884,1718893845986,-500.0,0.00055342,120]
[329981886,1718893846001,-500.0,0.00055342,120]
[329981889,1718893846015,-500.0,0.00055342,120]
[329981891,1718893846027,-500.0,0.00055342,120]
[329981893,1718893846038,-745.92,0.00055342,120]
[329981896,1718893846052,-500.0,0.00055342,120]
[329981898,1718893846064,-2164.15,0.00055342,120]
[329981900,1718893846076,-500.0,0.00055342,2]
[329981903,1718893846090,-500.0,0.00055342,120]
[329981905,1718893846104,-500.0,0.00055342,120]
[329981907,1718893846116,-150.36962459,0.00055342,120]
[329981909,1718893846132,-500.0,0.00055342,120]
[329981912,1718893846146,-500.0,0.00055342,120]
[329981914,1718893846158,-500.0,0.00055342,120]
[329981916,1718893846171,-500.0,0.00055342,120]
[329981919,1718893846189,-500.0,0.00055342,120]
[329981921,1718893846201,-500.0,0.00055342,120]
[329981923,1718893846214,-500.0,0.00055342,120]
[329981926,1718893846227,-500.0,0.00055342,120]
[329981928,1718893846240,-500.0,0.00055342,120]
[329981930,1718893846252,-29746.94,0.00055342,120]
[329981932,1718893846262,-500.0,0.00055342,120]
[329981934,1718893846272,-250.0,0.00055342,120]
[329981937,1718893846285,-2713.85,0.00055342,120]
[329981939,1718893846296,-500.0,0.00055342,120]
[329981941,1718893846309,-1700.35,0.00055342,21]
[329981944,1718893846321,-500.0,0.00055342,120]
[329981946,1718893846332,-500.0,0.00055342,120]
[329981948,1718893846346,-500.0,0.00055342,120]
[329981951,1718893846359,-500.0,0.00055342,120]
[329981953,1718893846371,-500.0,0.00055342,120]
[329981955,1718893846383,-520.15783121,0.00055342,120]
[329981957,1718893846394,-3121.95,0.00055342,120]
[329981959,1718893846404,-500.0,0.00055342,120]
[329981962,1718893846414,-500.0,0.00055342,120]
[329981964,1718893846425,-720.78,0.00055342,120]
[329981966,1718893846437,-500.0,0.00055342,120]
[329981968,1718893846449,-2876.31,0.00055342,120]
[329981971,1718893846462,-504.66410157,0.00055342,120]
[329981973,1718893846472,-255.63968812,0.00055342,120]
[329981975,1718893846483,-522.66443647,0.00055342,120]
[329981977,1718893846494,-500.0,0.00055342,120]
[329981979,1718893846505,-524.40122633,0.00055342,120]
[329981981,1718893846517,-3044.24,0.00055342,120]
[329981984,1718893846528,-500.0,0.00055342,120]
[329981985,1718893846538,-505.24337153,0.00055342,120]
[329981986,1718893846550,-500.0,0.00055342,120]
[329981987,1718893846562,-500.0,0.00055342,120]
[329981988,1718893846573,-500.0,0.00055342,120]
[329981989,1718893846583,-510.98,0.00055342,120]
[329981990,1718893846597,-500.0,0.00055342,120]
[329981992,1718893846609,-500.0,0.00055342,120]
[329981995,1718893846620,-500.0,0.00055342,120]
[329981997,1718893846631,-500.0,0.00055342,120]
[329981999,1718893846643,-500.0,0.00055342,7]
[329982001,1718893846655,-500.0,0.00055342,120]
[329982003,1718893846665,-1268.8,0.00055342,120]
[329982006,1718893846677,-1189.39,0.00055342,120]
[329982008,1718893846689,-500.0,0.00055342,120]
[329982010,1718893846699,-500.0,0.00055342,120]
[329982012,1718893846710,-500.0,0.00055342,120]
[329982014,1718893846721,-500.0,0.00055342,120]
[329982016,1718893846732,-527.77,0.00055342,120]
[329982021,1718893846743,-500.0,0.00055342,120]
[329982025,1718893846754,-4860.44,0.00055342,120]
[329982027,1718893846765,-500.0,0.00055342,120]
[329982031,1718893846776,-500.0,0.00055342,120]
[329982036,1718893846787,-500.0,0.00055342,120]
[329982041,1718893846799,-500.0,0.00055342,120]
[329982045,1718893846810,-541.64,0.00055342,120]
[329982048,1718893846821,-500.0,0.00055342,120]
[329982051,1718893846833,-513.62124172,0.00055342,120]
[329982056,1718893846846,-500.0,0.00055342,120]
[329982059,1718893846858,-500.0,0.00055342,120]
[329982062,1718893846869,-793.66,0.00055342,120]
[329982065,1718893846880,-580.04713733,0.00055342,120]
[329982068,1718893846891,-500.0,0.00055342,120]
[329982072,1718893846902,-500.0,0.00055342,120]
[329982076,1718893846913,-510.14293151,0.00055342,120]
[329982079,1718893846924,-3247.93,0.00055342,120]
[329982082,1718893846935,-500.0,0.00055342,120]
[329982085,1718893846947,-450.52879653,0.00055342,120]
[329982089,1718893846957,-500.0,0.00055342,120]
[329982092,1718893846968,-1140.96,0.00055342,120]
[329982095,1718893846979,-500.0,0.00055342,60]
[329982098,1718893846990,-510.59625241,0.00055342,120]
[329982101,1718893847002,-500.0,0.00055342,120]
[329982105,1718893847012,-500.0,0.00055342,30]
[329982109,1718893847023,-500.0,0.00055342,120]
[329982112,1718893847034,-500.0,0.00055342,120]
[329982115,1718893847045,-500.0,0.00055342,120]
[329982138,1718893847164,-500.0,0.00055342,120]
[329982140,1718893847180,-500.0,0.00055342,120]
[329982142,1718893847189,-798.75,0.00055342,120]
[329982144,1718893847199,-5567.6,0.00055342,120]
[329982146,1718893847208,-500.0,0.00055342,120]
[329982148,1718893847217,-500.0,0.00055342,120]
[329982150,1718893847226,-500.0,0.00055342,120]
[329982152,1718893847235,-2119.36,0.00055342,120]
[329982154,1718893847244,-559.12,0.00055342,2]
[329982156,1718893847253,-500.0,0.00055342,120]
[329982158,1718893847263,-702.87,0.00055342,120]
[329982160,1718893847272,-500.0,0.00055342,120]
[329982163,1718893847281,-1092.89,0.00055615,120]
[329982165,1718893847290,-1092.89,0.00055615,120]
[329982167,1718893847299,-500.0,0.00055616,120]
[329982168,1718893847309,-200.0,0.00055616,7]
[329982170,1718893847318,-500.0,0.00055616,2]
[329982172,1718893847327,-500.0,0.00055616,60]
[329982174,1718893847337,-511.9882498,0.00055616,120]
[329982177,1718893847347,-500.0,0.00055616,120]
[329982179,1718893847356,-500.0,0.00055616,120]
[329982181,1718893847365,-500.0,0.00055616,120]
[329982183,1718893847374,-513.08969782,0.00055616,120]
[329982185,1718893847383,-499.0,0.00055616,2]
[329982187,1718893847393,-500.0,0.00055616,120]
[329982189,1718893847403,-216.10730952,0.00055616,120]
[329982191,1718893847412,-441.56306542,0.00055616,120]
[329982193,1718893847422,-500.0,0.00055616,120]
[329982195,1718893847431,-500.0,0.00055616,120]
[329982197,1718893847440,-506.0264971,0.00055616,120]
[329982199,1718893847451,-500.0,0.00055616,120]
[329982201,1718893847462,-500.0,0.00055616,120]
[329982203,1718893847472,-500.0,0.00055616,120]
[329982205,1718893847481,-500.0,0.00055616,120]
[329982207,1718893847490,-500.0,0.00055616,120]
[329982209,1718893847499,-2840.35,0.00055616,120]
[329982211,1718893847508,-500.0,0.00055616,120]
[329982213,1718893847517,-500.0,0.00055616,120]
[329982215,1718893847530,-571.96,0.00055616,120]
[329982217,1718893847539,-500.0,0.00055616,120]
[329982219,1718893847553,-500.0,0.00055616,120]
[329982221,1718893847563,-500.0,0.00055616,120]
[329982223,1718893847573,-515.18669322,0.00055616,120]
[329982225,1718893847583,-1141.42,0.00055616,120]
[329982227,1718893847594,-500.0,0.00055616,120]
[329982229,1718893847603,-500.0,0.00055616,120]
[329982231,1718893847612,-500.0,0.00055616,120]
[329982233,1718893847621,-382.96586553,0.00055616,120]
[329982235,1718893847631,-451.96651901,0.00055616,120]
[329982237,1718893847640,-500.0,0.00055616,120]
[329982239,1718893847649,-508.03708302,0.00055616,120]
[329982241,1718893847659,-318.6087921,0.00055616,120]
[329982243,1718893847668,-745.92,0.00055616,120]
[329982245,1718893847677,-500.0,0.00055616,120]
[329982247,1718893847686,-2164.15,0.00055616,120]
[329982249,1718893847695,-500.0,0.00055616,2]
[329982251,1718893847703,-500.0,0.00055616,120]
[329982253,1718893847713,-500.0,0.00055616,120]
[329982255,1718893847722,-500.0,0.00055616,120]
[329982257,1718893847731,-500.0,0.00055616,120]
[329982259,1718893847741,-500.0,0.00055616,120]
[329982261,1718893847750,-457.27204241,0.00055616,120]
[329982263,1718893847759,-504.54144743,0.00055616,120]
[329982265,1718893847768,-500.0,0.00055616,120]
[329982267,1718893847778,-500.0,0.00055616,120]
[329982269,1718893847786,-500.0,0.00055616,120]
[329982271,1718893847796,-500.0,0.00055616,120]
[329982273,1718893847805,-29746.94,0.00055616,120]
[329982275,1718893847814,-500.0,0.00055616,120]
[329982277,1718893847823,-250.0,0.00055616,120]
[329982279,1718893847832,-2713.85,0.00055616,120]
[329982281,1718893847842,-500.0,0.00055616,120]
[329982283,1718893847852,-1700.35,0.00055616,21]
[329982285,1718893847861,-500.0,0.00055616,120]
[329982287,1718893847871,-500.0,0.00055616,120]
[329982289,1718893847881,-540.21136308,0.00055616,120]
[329982291,1718893847890,-500.0,0.00055616,120]
[329982293,1718893847900,-507.45609641,0.00055616,120]
[329982295,1718893847909,-3121.95,0.00055616,120]
[329982297,1718893847918,-500.0,0.00055616,120]
[329982299,1718893847927,-500.0,0.00055616,120]
[329982301,1718893847936,-720.78,0.00055616,120]
[329982303,1718893847946,-500.0,0.00055616,120]
[329982305,1718893847954,-2876.31,0.00055616,120]
[329982307,1718893847963,-500.0,0.00055616,120]
[329982309,1718893847972,-3044.24,0.00055616,120]
[329982311,1718893847981,-500.0,0.00055616,120]
[329982313,1718893847991,-500.0,0.00055616,120]
[329982315,1718893848000,-500.0,0.00055616,120]
[329982317,1718893848009,-505.03015383,0.00055616,120]
[329982319,1718893848019,-510.98,0.00055616,120]
[329982321,1718893848028,-500.0,0.00055616,120]
[329982323,1718893848038,-500.0,0.00055616,120]
[329982325,1718893848047,-500.0,0.00055616,120]
[329982327,1718893848056,-560.03068512,0.00055616,120]
[329982329,1718893848065,-500.0,0.00055616,7]
[329982331,1718893848074,-434.13532065,0.00055616,120]
[329982333,1718893848083,-1268.8,0.00055616,120]
[329982335,1718893848093,-1189.39,0.00055616,120]
[329982337,1718893848103,-509.49608353,0.00055616,120]
[329982339,1718893848112,-589.82225239,0.00055616,120]
[329982341,1718893848121,-549.43068168,0.00055616,120]
[329982343,1718893848130,-500.0,0.00055616,120]
[329982345,1718893848140,-527.77,0.00055616,120]
[329982347,1718893848150,-500.0,0.00055616,120]
[329982349,1718893848160,-4860.44,0.00055616,120]
[329982351,1718893848169,-505.56935591,0.00055616,120]
[329982353,1718893848178,-507.53926927,0.00055616,120]
[329982355,1718893848188,-500.0,0.00055616,120]
[329982357,1718893848197,-507.35167163,0.00055616,120]
[329982359,1718893848207,-541.64,0.00055616,120]
[329982361,1718893848216,-500.0,0.00055616,120]
[329982363,1718893848225,-500.0,0.00055616,120]
[329982365,1718893848235,-500.0,0.00055616,120]
[329982367,1718893848243,-793.66,0.00055616,120]
[329982368,1718893848253,-500.0,0.00055616,120]
[329982370,1718893848262,-500.0,0.00055616,120]
[329982373,1718893848273,-3247.93,0.00055616,120]
[329982374,1718893848283,-500.0,0.00055616,120]
[329982376,1718893848292,-500.0,0.00055616,120]
[329982378,1718893848302,-1140.96,0.00055616,120]
[329982380,1718893848312,-500.0,0.00055616,60]
[329982382,1718893848322,-500.0,0.00055616,120]
[329982384,1718893848332,-500.0,0.00055616,30]
[329982387,1718893848342,-500.0,0.00055616,120]
[329982389,1718893848354,-500.0,0.00055616,120]
[329982391,1718893848363,-391.11443703,0.00055616,120]
[329982392,1718893848372,-500.0,0.00055616,120]
[329982395,1718893848381,-500.0,0.00055616,120]
[329982397,1718893848392,-798.75,0.00055616,120]
[329982399,1718893848401,-5567.6,0.00055616,120]
[329982401,1718893848410,-500.0,0.00055616,120]
[329982403,1718893848418,-500.0,0.00055616,120]
[329982405,1718893848428,-500.0,0.00055616,120]
[329982407,1718893848437,-2119.36,0.00055616,120]
[329982409,1718893848446,-559.12,0.00055616,2]
[329982411,1718893848456,-515.6749748,0.00055616,120]
[329982413,1718893848465,-702.87,0.00055616,120]
[329982415,1718893848474,-275.34254945,0.00055887,120]
[329982417,1718893848483,-500.0,0.00055887,120]
[329982419,1718893848492,-759.77,0.00055887,120]
[329982421,1718893848501,-500.0,0.00055887,120]
[329982423,1718893848510,-504.87506414,0.00055887,120]
[329982425,1718893848519,-1092.89,0.00055888,120]
[329982427,1718893848529,-1092.89,0.00055889,120]
[329982428,1718893848538,-1092.89,0.00055889,120]
[329982431,1718893848549,-500.0,0.0005589,120]
[329982433,1718893848560,-200.0,0.0005589,7]
[329982434,1718893848571,-500.0,0.0005589,2]
[329982436,1718893848580,-500.0,0.0005589,60]
[329982439,1718893848591,-500.0,0.0005589,120]
[329982441,1718893848603,-500.0,0.0005589,120]
[329982443,1718893848611,-185.11442688,0.0005589,120]
[329982445,1718893848620,-508.04285117,0.0005589,120]
[329982447,1718893848629,-516.78781936,0.0005589,120]
[329982449,1718893848641,-500.0,0.0005589,120]
[329982451,1718893848650,-500.0,0.0005589,120]
[329982453,1718893848659,-516.92408543,0.0005589,120]
[329982455,1718893848668,-500.0,0.0005589,120]
[329982457,1718893848680,-500.0,0.0005589,120]
[329982459,1718893848689,-500.0,0.0005589,120]
[329982461,1718893848699,-2840.35,0.0005589,120]
[329982463,1718893848708,-500.0,0.0005589,120]
[329982465,1718893848717,-571.96,0.0005589,120]
[329982467,1718893848727,-506.63225553,0.0005589,120]
[329982469,1718893848736,-500.0,0.0005589,120]
[329982471,1718893848746,-500.0,0.0005589,120]
[329982473,1718893848756,-1141.42,0.0005589,120]
[329982475,1718893848765,-500.0,0.0005589,120]
[329982477,1718893848774,-500.0,0.0005589,120]
[329982479,1718893848784,-500.0,0.0005589,120]
[329982482,1718893848793,-500.0,0.0005589,120]
[329982484,1718893848803,-745.92,0.0005589,120]
[329982486,1718893848812,-500.0,0.0005589,120]
[329982488,1718893848822,-2164.15,0.0005589,120]
[329982490,1718893848831,-500.0,0.0005589,2]
[329982492,1718893848840,-500.0,0.0005589,120]
[329982493,1718893848852,-500.0,0.0005589,120]
[329982495,1718893848861,-500.0,0.0005589,120]
[329982497,1718893848871,-500.0,0.0005589,120]
[329982499,1718893848881,-500.0,0.0005589,120]
[329982501,1718893848891,-298.29642922,0.0005589,120]
[329982503,1718893848900,-500.0,0.0005589,120]
[329982506,1718893848910,-500.0,0.0005589,120]
[329982508,1718893848921,-512.68982664,0.0005589,120]
[329982509,1718893848931,-29746.94,0.0005589,120]
[329982512,1718893848940,-500.0,0.0005589,120]
[329982514,1718893848949,-382.59182625,0.0005589,120]
[329982516,1718893848959,-2713.85,0.0005589,120]
[329982517,1718893848968,-260.40703479,0.0005589,120]
[329982520,1718893848978,-1700.35,0.0005589,21]
[329982522,1718893848990,-500.0,0.0005589,120]
[329982524,1718893849000,-500.0,0.0005589,120]
[329982526,1718893849009,-500.0,0.0005589,120]
[329982528,1718893849019,-3121.95,0.0005589,120]
[329982530,1718893849028,-500.0,0.0005589,120]
[329982532,1718893849037,-500.0,0.0005589,120]
[329982534,1718893849046,-720.78,0.0005589,120]
[329982536,1718893849056,-500.0,0.0005589,120]
[329982538,1718893849065,-2876.31,0.0005589,120]
[329982540,1718893849074,-500.0,0.0005589,120]
[329982542,1718893849084,-3044.24,0.0005589,120]
[329982544,1718893849096,-500.0,0.0005589,120]
[329982546,1718893849106,-510.98,0.0005589,120]
[329982548,1718893849115,-500.0,0.0005589,120]
[329982550,1718893849126,-500.0,0.0005589,120]
[329982552,1718893849135,-500.0,0.0005589,120]
[329982554,1718893849145,-505.39077078,0.0005589,7]
[329982556,1718893849155,-1268.8,0.0005589,120]
[329982558,1718893849165,-1189.39,0.0005589,120]
[329982560,1718893849174,-500.0,0.0005589,120]
[329982562,1718893849183,-527.77,0.0005589,120]
[329982564,1718893849193,-500.0,0.0005589,120]
[329982566,1718893849203,-4860.44,0.0005589,120]
[329982568,1718893849212,-500.0,0.0005589,120]
[329982570,1718893849222,-541.64,0.0005589,120]
[329982572,1718893849232,-500.0,0.0005589,120]
[329982574,1718893849242,-518.7521664,0.0005589,120]
[329982576,1718893849252,-500.0,0.0005589,120]
[329982578,1718893849261,-793.66,0.0005589,120]
[329982580,1718893849272,-500.0,0.0005589,120]
[329982582,1718893849281,-500.0,0.0005589,120]
[329982584,1718893849291,-3247.93,0.0005589,120]
[329982586,1718893849301,-500.0,0.0005589,120]
[329982588,1718893849311,-500.0,0.0005589,120]
[329982590,1718893849320,-1140.96,0.0005589,120]
[329982592,1718893849330,-500.0,0.0005589,60]
[329982595,1718893849340,-500.0,0.0005589,120]
[329982606,1718893849444,-503.40785745,0.0005589,30]
[329982608,1718893849454,-500.0,0.0005589,120]
[329982610,1718893849464,-500.0,0.0005589,120]
[329982613,1718893849474,-500.0,0.0005589,120]
[329982615,1718893849483,-500.0,0.0005589,120]
[329982617,1718893849492,-798.75,0.0005589,120]
[329982619,1718893849502,-5567.6,0.0005589,120]
[329982621,1718893849512,-500.0,0.0005589,120]
[329982623,1718893849522,-542.58115087,0.0005589,120]
[329982625,1718893849532,-2119.36,0.0005589,120]
[329982627,1718893849542,-559.12,0.0005589,2]
[329982629,1718893849552,-759.77,0.00056161,120]
[329982631,1718893849564,-500.0,0.00056161,120]
[329982633,1718893849574,-1092.89,0.00056163,120]
[329982635,1718893849584,-1092.89,0.00056163,120]
[329982637,1718893849596,-500.0,0.00056164,120]
[329982638,1718893849606,-200.0,0.00056164,7]
[329982641,1718893849615,-500.0,0.00056164,2]
[329982643,1718893849624,-500.0,0.00056164,60]
[329982645,1718893849635,-517.9455013,0.00056164,120]
[329982646,1718893849646,-500.0,0.00056164,120]
[329982649,1718893849657,-503.82409226,0.00056164,120]
[329982651,1718893849668,-500.0,0.00056164,120]
[329982653,1718893849679,-500.0,0.00056164,120]
[329982654,1718893849690,-500.0,0.00056164,120]
[329982656,1718893849700,-500.0,0.00056164,120]
[329982658,1718893849709,-2840.35,0.00056164,120]
[329982660,1718893849718,-256.06370098,0.00056164,120]
[329982662,1718893849728,-571.96,0.00056164,120]
[329982664,1718893849738,-500.0,0.00056164,120]
[329982666,1718893849747,-500.0,0.00056164,120]
[329982668,1718893849756,-1141.42,0.00056164,120]
[329982670,1718893849765,-500.0,0.00056164,120]
[329982672,1718893849775,-584.83782563,0.00056164,120]
[329982674,1718893849783,-500.0,0.00056164,120]
[329982675,1718893849792,-500.0,0.00056164,120]